[Event "German Masters Frauen 2019"]
[Site "Magdeburg"]
[Date "2019.05.26"]
[Round "1.1"]
[White "Hoolt, Sarah"]
[Black "Osmanodja, Filiz"]
[Result "1-0"]
[ECO "A46"]
[WhiteElo "2321"]
[BlackElo "2260"]
[Annotator "NA RC"]
[PlyCount "115"]
[EventDate "2019.05.26"]
[EventType "tourn"]
[EventCountry "GER"]
[SourceTitle "playchess.com"]
[Source "ChessBase"]
[SourceQuality "1"]
[TimeControl "40/5400+30:1800+30"]

1. d4 {[%emt 0:00:00]} Nf6 {[%emt 0:00:00]} 2. Nf3 {[%emt 0:00:00]} d5 {[%emt 0:01:38]} 3. g3 {[%emt 0:00:20]} c5 {[%emt 0:02:25]} 4. Bg2 {[%emt 0:06:25]} cxd4 {[%emt 0:02:04]} 5. O-O {[%emt 0:00:48]} g6 {[%emt 0:04:00]} 6. Nxd4 {[%emt 0:07:16]} Bg7 {[%emt 0:01:58]} 7. c4 {[%emt 0:03:26]} e5 {[%emt 0:07:59]} 8. Nf3 {[%emt 0:06:39]} e4 {[%emt 0:02:20]} 9. Nd4 {[%emt 0:02:49]} O-O {[%emt 0:05:49]} 10. Na3 {[%emt 0:15:09]} Nc6 {[%emt 0:11:14]} 11. cxd5 {[%emt 0:07:53]} Qxd5 {[%emt 0:01:01]} 12. Nxc6 {[%emt 0:04:12]} Qxc6 {[%emt 0:03:48]} 13. Bg5 {[%emt 0:11:13]} Bg4 {[%emt 0:03:25]} 14. h3 {[%emt 0:03:46]} Rad8 {[%emt 0:05:57]} 15. Qe1 {[%emt 0:00:13]} Be6 {[%emt 0:02:33]} 16. Qc1 {[%emt 0:04:33]} Qa6 {[%emt 0:02:57]} 17. Qf4 {[%emt 0:06:45]} Nh5 {[%emt 0:11:53]} 18. Qxe4 {[%emt 0:03:41]} Rd5 {[%emt 0:03:42]} 19. Bc1 {[%emt 0:02:43]} Ra5 {[%emt 0:04:57]} 20. g4 {[%emt 0:02:51]} f5 {[%emt 0:14:47]} 21. Qxb7 {[%emt 0:03:18]} Qxb7 {[%emt 0:01:31]} 22. Bxb7 {[%emt 0:00:01]} fxg4 {[%emt 0:00:05]} 23. Bd2 {[%emt 0:03:20]} Ra4 {[%emt 0:01:38]} 24. Bc6 {[%emt 0:00:31]} Ra6 {[%emt 0:01:53]} 25. Bb5 {[%emt 0:00:19]} Rb6 {[%emt 0:00:38]} 26. hxg4 {[%emt 0:01:57]} Bxg4 {[%emt 0:01:29]} 27. Bc3 {[%emt 0:02:20]} Bxc3 {[%emt 0:00:23]} 28. bxc3 {[%emt 0:00:01]} Nf4 {[%emt 0:01:02]} 29. f3 {[%emt 0:00:15]} Bh3 {[%emt 0:00:33]} 30. Rfd1 {[%emt 0:00:36]} Rf5 {[%emt 0:00:18]} 31. Bc4+ {[%emt 0:00:40]} Kg7 {[%emt 0:00:07]} 32. Rab1 {[%emt 0:00:50]} Rg5+ {[%emt 0:00:33]} 33. Kf2 {[%emt 0:00:14]} Bf5 {[%emt 0:01:16]} 34. Rxb6 {[%emt 0:00:11]} axb6 {[%emt 0:00:02]} 35. Nb5 {[%emt 0:01:18]} h5 {[%emt 0:00:13]} 36. Nd4 {[%emt 0:00:16]} Bd7 {[%emt 0:01:08]} 37. Ke3 {[%emt 0:00:58]} Ng2+ {[%emt 0:00:11]} 38. Kd2 {[%emt 0:00:14]} h4 {[%emt 0:00:31]} 39. Be6 {[%emt 0:00:29]} Ba4 {[%emt 0:00:48]} 40. Rh1 {[%emt 0:00:51]} Rg3 {[%emt 0:00:31]} 41. Bg4 {[%emt 0:03:11]} Kf6 {[%emt 0:04:48]} 42. e3 {[%emt 0:04:24]} Kg5 {[%emt 0:11:11]} 43. Rh2 {[%emt 0:01:47]} Bd1 {[%emt 0:05:47]} 44. Bh3 {[%emt 0:04:13]} Bxf3 {[%emt 0:00:38]} 45. Nxf3+ {[%emt 0:00:10]} Rxf3 {[%emt 0:00:03]} 46. Rxg2+ {[%emt 0:00:14]} Kh6 {[%emt 0:01:24]} 47. Bg4 {[%emt 0:00:45]} Rf1 {[%emt 0:00:50]} 48. e4 {[%emt 0:01:50]} Rh1 {[%emt 0:00:04]} 49. e5 {[%emt 0:00:50]} h3 {[%emt 0:00:02]} 50. Re2 {[%emt 0:00:14]} Kg7 {[%emt 0:04:19]} 51. Bf3 {[%emt 0:05:27]} Ra1 {[%emt 0:01:23]} 52. Bd5 {[%emt 0:00:09]} Kf8 {[%emt 0:01:15]} 53. Rh2 {[%emt 0:00:16]} Rg1 {[%emt 0:00:38]} 54. Rxh3 {[%emt 0:00:10]} Rg5 {[%emt 0:00:29]} 55. Re3 {[%emt 0:00:08]} Ke7 {[%emt 0:00:15]} 56. Kd3 {[%emt 0:00:15]} Rh5 {[%emt 0:00:24]} 57. Kc4 {[%emt 0:00:25]} Rh2 {[%emt 0:00:09]} 58. Kb5 {[%emt 0:00:46]} 1-0

[Event "German Masters Frauen 2019"]
[Site "Magdeburg"]
[Date "2019.05.26"]
[Round "1.2"]
[White "Muetsch, Annmarie"]
[Black "Sieber, Fiona"]
[Result "1/2-1/2"]
[ECO "B51"]
[WhiteElo "2266"]
[BlackElo "2250"]
[Annotator "NA RC"]
[PlyCount "115"]
[EventDate "2019.05.26"]
[EventType "tourn"]
[EventCountry "GER"]
[SourceTitle "playchess.com"]
[Source "ChessBase"]
[SourceQuality "1"]
[TimeControl "40/5400+30:1800+30"]

1. e4 {[%emt 0:00:00]} c5 {[%emt 0:00:00]} 2. Nf3 {[%emt 0:00:00]} d6 {[%emt 0:00:00]} 3. Bb5+ {[%emt 0:00:00]} Nd7 {[%emt 0:00:00]} 4. Ba4 {[%emt 0:00:02]} Ngf6 {[%emt 0:01:23]} 5. O-O {[%emt 0:00:13]} a6 {[%emt 0:03:54]} 6. c4 {[%emt 0:00:12]} g6 {[%emt 0:03:56]} 7. d3 {[%emt 0:00:30]} Bg7 {[%emt 0:00:30]} 8. h3 {[%emt 0:00:16]} O-O {[%emt 0:00:42]} 9. Nc3 {[%emt 0:00:33]} Rb8 {[%emt 0:11:59]} 10. Be3 {[%emt 0:02:15]} Qa5 {[%emt 0:02:53]} 11. Bd2 {[%emt 0:07:44]} Qc7 {[%emt 0:03:43]} 12. Rb1 {[%emt 0:01:37]} Ne5 {[%emt 0:04:27]} 13. Nxe5 {[%emt 0:02:36]} dxe5 {[%emt 0:00:03]} 14. Qe2 {[%emt 0:02:23]} Qd6 {[%emt 0:03:17]} 15. Be3 {[%emt 0:09:38]} b6 {[%emt 0:06:42]} 16. a3 {[%emt 0:02:23]} Nh5 {[%emt 0:02:39]} 17. Rfd1 {[%emt 0:07:09]} Nf4 {[%emt 0:04:15]} 18. Qf3 {[%emt 0:09:05]} f5 {[%emt 0:12:05]} 19. b4 {[%emt 0:07:10]} Bb7 {[%emt 0:08:22]} 20. bxc5 {[%emt 0:09:24]} bxc5 {[%emt 0:00:09]} 21. Bxf4 {[%emt 0:06:59]} exf4 {[%emt 0:01:04]} 22. Nd5 {[%emt 0:01:02]} e6 {[%emt 0:06:06]} 23. Rb6 {[%emt 0:01:48]} Qe5 {[%emt 0:01:22]} 24. Ne7+ {[%emt 0:01:11]} Kf7 {[%emt 0:02:54]} 25. Nc6 {[%emt 0:01:34]} Bxc6 {[%emt 0:00:04]} 26. Rxc6 {[%emt 0:00:32]} Rb2 {[%emt 0:04:32]} 27. Rxa6 {[%emt 0:02:16]} Qc7 {[%emt 0:06:52]} 28. exf5 {[%emt 0:02:01]} gxf5 {[%emt 0:00:07]} 29. Qh5+ {[%emt 0:01:47]} Kg8 {[%emt 0:01:21]} 30. Rxe6 {[%emt 0:00:55]} Bd4 {[%emt 0:01:51]} 31. Re2 {[%emt 0:00:49]} Rxe2 {[%emt 0:01:29]} 32. Qxe2 {[%emt 0:00:05]} Ra8 {[%emt 0:02:48]} 33. Qe6+ {[%emt 0:03:55]} Qf7 {[%emt 0:00:24]} 34. Qc6 {[%emt 0:01:00]} Rd8 {[%emt 0:01:37]} 35. Re1 {[%emt 0:00:53]} Qf6 {[%emt 0:01:20]} 36. Qxf6 {[%emt 0:00:18]} Bxf6 {[%emt 0:00:02]} 37. Re8+ {[%emt 0:00:06]} Kf7 {[%emt 0:00:18]} 38. Rxd8 {[%emt 0:00:09]} Bxd8 {[%emt 0:00:01]} 39. Bd7 {[%emt 0:00:25]} Kf6 {[%emt 0:00:07]} 40. Kf1 {[%emt 0:00:19]} Ke5 {[%emt 0:00:19]} 41. Ke2 {[%emt 0:30:16]} h6 {[%emt 0:30:45]} 42. Kd2 {[%emt 0:00:54]} Ba5+ {[%emt 0:00:31]} 43. Kc2 {[%emt 0:00:19]} f3 {[%emt 0:00:00]} 44. gxf3 {[%emt 0:00:00]} f4 {[%emt 0:00:00]} 45. h4 {[%emt 0:00:00]} Be1 {[%emt 0:00:00]} 46. h5 {[%emt 0:00:00]} Bxf2 {[%emt 0:00:00]} 47. Kd2 {[%emt 0:00:00]} Bh4 {[%emt 0:00:00]} 48. Kc3 {[%emt 0:00:00]} Be1+ {[%emt 0:00:00]} 49. Kb3 {[%emt 0:00:00]} Bd2 {[%emt 0:00:00]} 50. Kc2 Ba5 51. Kd1 Bc3 52. Ke2 Bb2 53. a4 Bc3 54. Bc6 Bb4 55. Be4 Bc3 56. Kf2 Bb4 57. Kg2 Bd2 58. Kf2 1/2-1/2

[Event "German Masters Frauen 2019"]
[Site "Magdeburg"]
[Date "2019.05.26"]
[Round "1.3"]
[White "Kachiani-Gersinska, Ketino"]
[Black "Lubbe, Melanie"]
[Result "1-0"]
[ECO "A04"]
[WhiteElo "2305"]
[BlackElo "2278"]
[Annotator "NA RC"]
[PlyCount "145"]
[EventDate "2019.05.26"]
[EventType "tourn"]
[EventCountry "GER"]
[SourceTitle "playchess.com"]
[Source "ChessBase"]
[SourceQuality "1"]
[TimeControl "40/5400+30:1800+30"]

1. Nf3 {[%emt 0:00:00]} d6 {[%emt 0:00:00]} 2. d4 {[%emt 0:00:16]} Nd7 {[%emt 0:01:52]} 3. g3 {[%emt 0:05:46]} g6 {[%emt 0:02:58]} 4. Bg2 {[%emt 0:04:19]} Bg7 {[%emt 0:00:05]} 5. O-O {[%emt 0:01:04]} e5 {[%emt 0:03:00]} 6. dxe5 {[%emt 0:06:41]} dxe5 {[%emt 0:00:49]} 7. Nc3 {[%emt 0:00:08]} Ngf6 {[%emt 0:18:25]} 8. Bg5 {[%emt 0:13:29]} h6 {[%emt 0:02:05]} 9. Be3 {[%emt 0:06:07]} O-O {[%emt 0:01:10]} 10. h3 {[%emt 0:00:36]} Qe7 {[%emt 0:04:04]} 11. Qc1 {[%emt 0:10:31]} Kh7 {[%emt 0:01:19]} 12. Rd1 {[%emt 0:07:58]} Nb6 {[%emt 0:03:47]} 13. Nd2 {[%emt 0:06:12]} Rd8 {[%emt 0:09:39]} 14. Nb3 {[%emt 0:00:51]} Rxd1+ {[%emt 0:08:49]} 15. Qxd1 {[%emt 0:02:00]} c6 {[%emt 0:03:52]} 16. Bc5 {[%emt 0:04:39]} Qe8 {[%emt 0:02:42]} 17. Nd2 {[%emt 0:15:49]} Be6 {[%emt 0:03:57]} 18. Qe1 {[%emt 0:00:45]} Nfd7 {[%emt 0:11:54]} 19. Bd6 {[%emt 0:05:53]} a5 {[%emt 0:00:40]} 20. a4 {[%emt 0:00:37]} Nd5 {[%emt 0:02:06]} 21. Na2 {[%emt 0:01:16]} N7b6 {[%emt 0:04:51]} 22. e4 {[%emt 0:02:48]} Ne7 {[%emt 0:00:37]} 23. b3 {[%emt 0:00:32]} Qd7 {[%emt 0:03:36]} 24. Bc5 {[%emt 0:00:20]} Nbc8 {[%emt 0:00:26]} 25. Rd1 {[%emt 0:01:02]} b6 {[%emt 0:02:09]} 26. Nf3 {[%emt 0:01:03]} Qc7 {[%emt 0:00:58]} 27. Ba3 {[%emt 0:00:09]} b5 {[%emt 0:00:52]} 28. Bxe7 {[%emt 0:01:05]} Qxe7 {[%emt 0:01:25]} 29. Nc3 {[%emt 0:00:06]} Qc5 {[%emt 0:00:51]} 30. Qe3 {[%emt 0:00:36]} Qxe3 {[%emt 0:00:59]} 31. fxe3 {[%emt 0:00:01]} b4 {[%emt 0:00:55]} 32. Nb1 {[%emt 0:00:25]} Ra7 {[%emt 0:01:19]} 33. Bf1 {[%emt 0:00:17]} Rd7 {[%emt 0:00:50]} 34. Rxd7 {[%emt 0:00:33]} Bxd7 {[%emt 0:00:01]} 35. Nbd2 {[%emt 0:00:28]} Nd6 {[%emt 0:00:20]} 36. Nc4 {[%emt 0:00:45]} Nxc4 {[%emt 0:00:52]} 37. Bxc4 {[%emt 0:00:03]} f5 {[%emt 0:01:56]} 38. Nd2 {[%emt 0:00:28]} Bf8 {[%emt 0:01:10]} 39. Kg2 {[%emt 0:00:23]} Bc5 {[%emt 0:00:30]} 40. Bd3 {[%emt 0:00:45]} Bxe3 {[%emt 0:00:44]} 41. Nc4 {[%emt 0:30:38]} Bd4 {[%emt 0:31:03]} 42. Nxa5 {[%emt 0:00:21]} Kg7 {[%emt 0:00:00]} 43. Nc4 {[%emt 0:00:00]} Kf6 {[%emt 0:00:00]} 44. a5 {[%emt 0:00:00]} f4 {[%emt 0:00:00]} 45. gxf4 exf4 {[%emt 0:00:00]} 46. e5+ {[%emt 0:00:00]} Kf7 {[%emt 0:00:00]} 47. Nd6+ {[%emt 0:00:00]} Ke6 {[%emt 0:00:00]} 48. Bxg6 {[%emt 0:00:00]} Kxe5 {[%emt 0:00:00]} 49. Nc4+ {[%emt 0:00:00]} Kf6 {[%emt 0:00:00]} 50. Be4 {[%emt 0:00:00]} Kg5 {[%emt 0:00:00]} 51. Nd6 {[%emt 0:00:00]} Bc5 {[%emt 0:00:00]} 52. a6 {[%emt 0:00:00]} Kf6 {[%emt 0:00:00]} 53. Bf3 {[%emt 0:00:03]} Ke5 {[%emt 0:00:00]} 54. Nf7+ {[%emt 0:00:16]} Kd4 {[%emt 0:01:13]} 55. Nxh6 {[%emt 0:00:06]} Bc8 {[%emt 0:01:33]} 56. h4 {[%emt 0:02:35]} Bxa6 {[%emt 0:00:16]} 57. Bxc6 {[%emt 0:01:01]} Kc3 {[%emt 0:01:02]} 58. Kf3 {[%emt 0:02:56]} Kxc2 {[%emt 0:00:18]} 59. Bd5 {[%emt 0:00:07]} Kd2 {[%emt 0:00:39]} 60. Nf5 {[%emt 0:00:12]} Be3 {[%emt 0:00:57]} 61. Nd6 {[%emt 0:02:02]} Be2+ {[%emt 0:00:49]} 62. Kg2 {[%emt 0:00:03]} Bg4 {[%emt 0:00:54]} 63. Ne4+ {[%emt 0:00:54]} Ke2 {[%emt 0:00:37]} 64. Ng5 {[%emt 0:00:30]} Bf2 {[%emt 0:02:06]} 65. Nf3 {[%emt 0:01:26]} Ke3 {[%emt 0:00:15]} 66. Ne5 {[%emt 0:00:14]} Bh5 {[%emt 0:01:21]} 67. Bf3 {[%emt 0:00:39]} Bxf3+ {[%emt 0:01:14]} 68. Nxf3 {[%emt 0:00:02]} Ke2 {[%emt 0:00:11]} 69. h5 {[%emt 0:00:15]} Bc5 {[%emt 0:00:31]} 70. h6 {[%emt 0:00:42]} Bf8 {[%emt 0:00:46]} 71. Nd4+ {[%emt 0:00:39]} Kd3 {[%emt 0:00:13]} 72. h7 {[%emt 0:00:27]} Bg7 {[%emt 0:00:15]} 73. Ne6 {[%emt 0:00:13] Kd4} 1-0

[Event "German Masters Frauen 2019"]
[Site "Magdeburg"]
[Date "2019.05.26"]
[Round "1.4"]
[White "Heinemann, Josefine"]
[Black "Klek, Hanna Marie"]
[Result "1/2-1/2"]
[ECO "C88"]
[WhiteElo "2227"]
[BlackElo "2325"]
[Annotator "NA"]
[PlyCount "73"]
[EventDate "2019.05.26"]
[EventType "tourn"]
[EventCountry "GER"]
[SourceTitle "playchess.com"]
[Source "ChessBase"]
[SourceQuality "1"]
[TimeControl "40/5400+30:1800+30"]

1. e4 {[%emt 0:00:00]} e5 {[%emt 0:00:00]} 2. Nf3 {[%emt 0:00:00]} Nc6 {[%emt 0:00:00]} 3. Bb5 {[%emt 0:00:00]} a6 {[%emt 0:00:00]} 4. Ba4 {[%emt 0:00:00]} Nf6 {[%emt 0:00:00]} 5. O-O {[%emt 0:00:00]} Be7 {[%emt 0:00:00]} 6. Re1 {[%emt 0:00:02]} b5 {[%emt 0:00:00]} 7. Bb3 {[%emt 0:00:04]} d6 {[%emt 0:00:00]} 8. c3 {[%emt 0:00:06]} Na5 {[%emt 0:00:01]} 9. Bc2 {[%emt 0:00:07]} c5 {[%emt 0:00:04]} 10. h3 {[%emt 0:07:24]} g5 {[%emt 0:00:06]} 11. Nxg5 {[%emt 0:01:07]} Rg8 {[%emt 0:01:00]} 12. d4 {[%emt 0:01:34]} h6 {[%emt 0:04:09]} 13. dxe5 {[%emt 0:00:54]} dxe5 {[%emt 0:00:17]} 14. Qxd8+ {[%emt 0:01:15]} Bxd8 {[%emt 0:00:06]} 15. Nf3 {[%emt 0:01:21]} Bxh3 {[%emt 0:01:05]} 16. g3 {[%emt 0:03:37]} Ng4 {[%emt 0:03:49]} 17. Nh2 {[%emt 0:11:01]} h5 {[%emt 0:17:27]} 18. Nxg4 {[%emt 0:03:52]} Bxg4 {[%emt 0:00:39]} 19. Kg2 {[%emt 0:00:54]} Be6 {[%emt 0:01:01]} 20. Nd2 {[%emt 0:05:43]} h4 {[%emt 0:03:19]} 21. Nf1 {[%emt 0:00:15]} Bg5 {[%emt 0:10:15]} 22. Bxg5 {[%emt 0:06:15]} Rxg5 {[%emt 0:00:08]} 23. a3 {[%emt 0:00:57]} Nc4 {[%emt 0:06:14]} 24. b4 {[%emt 0:02:43]} Ke7 {[%emt 0:02:16]} 25. a4 {[%emt 0:04:17]} bxa4 {[%emt 0:05:50]} 26. Rxa4 {[%emt 0:01:06]} Bd7 {[%emt 0:08:23]} 27. Ra2 {[%emt 0:01:23]} cxb4 {[%emt 0:01:34]} 28. cxb4 {[%emt 0:01:34]} hxg3 {[%emt 0:00:37]} 29. Nxg3 {[%emt 0:01:11]} Nd6 {[%emt 0:07:39]} 30. Bd3 {[%emt 0:03:51]} Rb8 {[%emt 0:01:12]} 31. Rxa6 {[%emt 0:07:26]} Rxb4 {[%emt 0:00:16]} 32. Ra7 {[%emt 0:00:22]} Rd4 {[%emt 0:02:19]} 33. Re3 {[%emt 0:00:50]} Nc8 {[%emt 0:03:32]} 34. Rb7 {[%emt 0:02:37]} Nd6 {[%emt 0:00:21]} 35. Ra7 {[%emt 0:00:05]} Nc8 {[%emt 0:00:05]} 36. Rb7 {[%emt 0:00:03]} Nd6 {[%emt 0:00:04]} 37. Ra7 {[%emt 0:00:11]} 1/2-1/2

[Event "German Masters Frauen 2019"]
[Site "Magdeburg"]
[Date "2019.05.27"]
[Round "2.1"]
[White "Osmanodja, Filiz"]
[Black "Klek, Hanna Marie"]
[Result "0-1"]
[ECO "B12"]
[WhiteElo "2260"]
[BlackElo "2325"]
[Annotator "NA RC"]
[PlyCount "82"]
[EventDate "2019.05.26"]
[EventType "tourn"]
[EventCountry "GER"]
[SourceTitle "playchess.com"]
[Source "ChessBase"]
[SourceQuality "1"]
[TimeControl "40/5400+30:1800+30"]

1. e4 {[%emt 0:00:00]} c6 {[%emt 0:00:00]} 2. d4 {[%emt 0:00:13]} d5 {[%emt 0:00:00]} 3. e5 {[%emt 0:00:49]} Bf5 {[%emt 0:00:00]} 4. Nc3 {[%emt 0:02:34]} a6 {[%emt 0:00:00]} 5. h4 {[%emt 0:01:42]} c5 {[%emt 0:01:12]} 6. dxc5 {[%emt 0:06:22]} d4 {[%emt 0:17:26]} 7. Nce2 {[%emt 0:02:43]} Nc6 {[%emt 0:00:56]} 8. Ng3 {[%emt 0:06:52]} Qa5+ {[%emt 0:09:17]} 9. Qd2 {[%emt 0:09:10]} Qxc5 {[%emt 0:08:36]} 10. Nxf5 {[%emt 0:00:06]} Qxe5+ {[%emt 0:00:07]} 11. Ne3 {[%emt 0:03:34]} Nf6 {[%emt 0:06:37]} 12. Nf3 {[%emt 0:00:35]} dxe3 {[%emt 0:00:13]} 13. Qxe3 {[%emt 0:00:46]} Qd5 {[%emt 0:08:37]} 14. c4 {[%emt 0:08:51]} Qd7 {[%emt 0:03:46]} 15. Be2 {[%emt 0:02:41]} Ng4 {[%emt 0:02:05]} 16. Qb6 {[%emt 0:01:47]} e6 {[%emt 0:06:44]} 17. O-O {[%emt 0:01:33]} Bd6 {[%emt 0:01:10]} 18. Rd1 {[%emt 0:07:45]} Qe7 {[%emt 0:01:06]} 19. Bg5 {[%emt 0:11:54]} f6 {[%emt 0:01:11]} 20. Rxd6 {[%emt 0:04:03]} Qxd6 {[%emt 0:00:40]} 21. c5 {[%emt 0:05:50]} Qe7 {[%emt 0:02:41]} 22. Bf4 {[%emt 0:02:57]} e5 {[%emt 0:01:23]} 23. Bg3 {[%emt 0:03:08]} O-O {[%emt 0:01:19]} 24. Nd2 {[%emt 0:04:24]} Nh6 {[%emt 0:00:52]} 25. Bf3 {[%emt 0:03:36]} Kh8 {[%emt 0:07:53]} 26. Nc4 {[%emt 0:02:35]} Nf5 {[%emt 0:02:23]} 27. Be4 {[%emt 0:01:32]} Nfd4 {[%emt 0:02:31]} 28. Nd6 {[%emt 0:00:21]} f5 {[%emt 0:00:37]} 29. Bxc6 {[%emt 0:01:07]} bxc6 {[%emt 0:00:16]} 30. f3 {[%emt 0:03:08]} a5 {[%emt 0:06:13]} 31. Re1 {[%emt 0:01:37]} Rfb8 {[%emt 0:01:25]} 32. Rxe5 {[%emt 0:00:39]} Qd7 {[%emt 0:00:26]} 33. Nc4 {[%emt 0:00:53]} Rxb6 {[%emt 0:01:05]} 34. Nxb6 {[%emt 0:00:03]} Qd8 {[%emt 0:03:03]} 35. Nxa8 {[%emt 0:00:11]} Qxa8 {[%emt 0:00:06]} 36. Bf2 {[%emt 0:00:46]} Qd8 {[%emt 0:00:46]} 37. Kh1 {[%emt 0:01:09]} h6 {[%emt 0:00:25]} 38. Re1 {[%emt 0:00:20]} Nb5 {[%emt 0:00:30]} 39. a4 {[%emt 0:00:32]} Nc7 {[%emt 0:00:17]} 40. Bg3 {[%emt 0:00:22]} f4 {[%emt 0:00:08]} 41. Bf2 {[%emt 0:30:12]} Qd2 {[%emt 0:30:29]} 0-1

[Event "German Masters Frauen 2019"]
[Site "Magdeburg"]
[Date "2019.05.28"]
[Round "3.1"]
[White "Muetsch, Annmarie"]
[Black "Osmanodja, Filiz"]
[Result "1-0"]
[ECO "C41"]
[WhiteElo "2266"]
[BlackElo "2260"]
[Annotator "ChessBase"]
[PlyCount "79"]
[EventDate "2019.05.26"]
[EventType "tourn"]
[EventCountry "GER"]
[SourceTitle "playchess.com"]
[Source "ChessBase"]
[SourceQuality "1"]
[TimeControl "40/5400+30:1800+30"]

1. e4 {[%emt 0:00:00]} d6 {[%emt 0:00:00]} 2. d4 {[%emt 0:01:26]} Nf6 {[%emt 0:00:00]} 3. Nc3 {[%emt 0:00:08]} e5 {[%emt 0:00:00]} 4. Nf3 {[%emt 0:00:32]} Nbd7 {[%emt 0:00:02]} 5. Bc4 {[%emt 0:00:16]} Be7 {[%emt 0:00:08]} 6. O-O {[%emt 0:00:33]} O-O {[%emt 0:00:09]} 7. a4 {[%emt 0:01:44]} exd4 {[%emt 0:00:31]} 8. Nxd4 {[%emt 0:00:13]} Ne5 {[%emt 0:00:02]} 9. Be2 {[%emt 0:03:32]} c5 {[%emt 0:03:30]} 10. Nf3 {[%emt 0:02:46]} Nc6 {[%emt 0:01:14]} 11. h3 {[%emt 0:03:29]} h6 {[%emt 0:03:35]} 12. Bf4 {[%emt 0:06:06]} Be6 {[%emt 0:02:14]} 13. Qd2 {[%emt 0:08:15]} Nb4 {[%emt 0:07:27]} 14. Rad1 {[%emt 0:04:30]} d5 {[%emt 0:17:32]} 15. exd5 {[%emt 0:00:25]} Nfxd5 {[%emt 0:01:39]} 16. Nxd5 {[%emt 0:00:53]} Qxd5 {[%emt 0:03:45]} 17. c3 {[%emt 0:06:46]} Qxd2 {[%emt 0:00:33]} 18. Nxd2 {[%emt 0:00:19]} Nd5 {[%emt 0:02:16]} 19. Bg3 {[%emt 0:00:20]} Rad8 {[%emt 0:02:57]} 20. Nc4 {[%emt 0:12:27]} f5 {[%emt 0:05:30]} 21. Be5 {[%emt 0:02:04]} f4 {[%emt 0:05:31]} 22. Rfe1 {[%emt 0:04:13]} g5 {[%emt 0:21:08]} 23. Na5 {[%emt 0:06:08]} Nb6 {[%emt 0:07:42]} 24. c4 {[%emt 0:05:20]} Bc8 {[%emt 0:04:06]} 25. Bf3 {[%emt 0:03:30]} Rxd1 {[%emt 0:00:12]} 26. Rxd1 {[%emt 0:00:35]} Nxa4 {[%emt 0:04:21]} 27. b3 {[%emt 0:03:25]} Nb6 {[%emt 0:00:27]} 28. Bxb7 {[%emt 0:01:22]} Bxb7 {[%emt 0:02:40]} 29. Nxb7 {[%emt 0:00:06]} Rf5 {[%emt 0:01:09]} 30. Bb8 {[%emt 0:02:44]} Nc8 {[%emt 0:00:59]} 31. Rd7 {[%emt 0:02:11]} Rf8 {[%emt 0:01:37]} 32. Bxa7 {[%emt 0:02:59]} Nxa7 {[%emt 0:00:45]} 33. Rxe7 {[%emt 0:00:06]} Nc6 {[%emt 0:01:05]} 34. Rc7 {[%emt 0:03:25]} Nd4 {[%emt 0:00:02]} 35. Nxc5 {[%emt 0:01:24]} Ra8 {[%emt 0:00:59]} 36. Rd7 {[%emt 0:03:43]} Ra1+ {[%emt 0:00:22]} 37. Kh2 {[%emt 0:00:04]} Ne2 {[%emt 0:01:07]} 38. Ne4 {[%emt 0:02:08]} Rb1 {[%emt 0:01:00]} 39. c5 {[%emt 0:00:48]} Rxb3 {[%emt 0:00:37]} 40. c6 {[%emt 0:00:19]} 1-0

[Event "German Masters Frauen 2019"]
[Site "Magdeburg"]
[Date "2019.05.28"]
[Round "3.2"]
[White "Kachiani-Gersinska, Ketino"]
[Black "Hoolt, Sarah"]
[Result "1/2-1/2"]
[ECO "B38"]
[WhiteElo "2305"]
[BlackElo "2321"]
[Annotator "ChessBase"]
[PlyCount "84"]
[EventDate "2019.05.26"]
[EventType "tourn"]
[EventCountry "GER"]
[SourceTitle "playchess.com"]
[Source "ChessBase"]
[SourceQuality "1"]
[TimeControl "40/5400+30:1800+30"]

1. c4 {[%emt 0:00:27]} c5 {[%emt 0:00:34]} 2. Nf3 {[%emt 0:00:08]} g6 {[%emt 0:00:32]} 3. d4 {[%emt 0:01:53]} cxd4 {[%emt 0:01:55]} 4. Nxd4 {[%emt 0:00:07]} Bg7 {[%emt 0:00:13]} 5. e4 {[%emt 0:02:39]} Nc6 {[%emt 0:00:49]} 6. Be3 {[%emt 0:00:10]} Nf6 {[%emt 0:00:19]} 7. Nc3 {[%emt 0:00:07]} d6 {[%emt 0:00:19]} 8. Be2 {[%emt 0:21:00]} O-O {[%emt 0:01:40]} 9. f3 {[%emt 0:02:40]} Bd7 {[%emt 0:07:07]} 10. Qd2 {[%emt 0:01:00]} Nxd4 {[%emt 0:02:03]} 11. Bxd4 {[%emt 0:00:09]} Bc6 {[%emt 0:00:05]} 12. Rc1 {[%emt 0:03:49]} a5 {[%emt 0:06:54]} 13. b3 {[%emt 0:03:22]} Nd7 {[%emt 0:02:36]} 14. O-O {[%emt 0:07:33]} Nc5 {[%emt 0:09:17]} 15. Bxg7 {[%emt 0:06:04]} Kxg7 {[%emt 0:00:05]} 16. Rfd1 {[%emt 0:00:05]} Qb6 {[%emt 0:09:25]} 17. Qd4+ {[%emt 0:09:13]} e5 {[%emt 0:02:10]} 18. Qe3 {[%emt 0:00:31]} Rad8 {[%emt 0:02:35]} 19. Rd2 {[%emt 0:06:18]} Rd7 {[%emt 0:04:25]} 20. Rcd1 {[%emt 0:09:07]} Rfd8 {[%emt 0:01:35]} 21. Rb1 {[%emt 0:00:16]} Qb4 {[%emt 0:03:31]} 22. Kf2 {[%emt 0:08:33]} Rf8 {[%emt 0:04:11]} 23. Kg1 {[%emt 0:03:37]} Ne6 {[%emt 0:01:16]} 24. Nd5 {[%emt 0:02:41]} Bxd5 {[%emt 0:01:05]} 25. Rxd5 {[%emt 0:00:08]} Nd4 {[%emt 0:03:45]} 26. c5 {[%emt 0:00:59]} Rfd8 {[%emt 0:02:57]} 27. cxd6 {[%emt 0:01:09]} Rxd6 {[%emt 0:02:16]} 28. Bc4 {[%emt 0:00:59]} b5 {[%emt 0:01:42]} 29. Rxd6 {[%emt 0:00:33]} Qxd6 {[%emt 0:02:11]} 30. Bd5 {[%emt 0:03:07]} Rc8 {[%emt 0:01:14]} 31. a4 {[%emt 0:01:45]} Rc2 {[%emt 0:08:02]} 32. Kh1 {[%emt 0:01:13]} b4 {[%emt 0:13:07]} 33. Bc4 {[%emt 0:02:18]} Ne6 {[%emt 0:02:18]} 34. Qa7 {[%emt 0:01:04]} Kf6 {[%emt 0:03:18]} 35. Rg1 {[%emt 0:00:20]} Qc7 {[%emt 0:00:41]} 36. Qa6 {[%emt 0:00:53]} Rd2 {[%emt 0:00:33]} 37. Bd5 {[%emt 0:00:48]} Qc5 {[%emt 0:00:29]} 38. Bxe6 {[%emt 0:00:34]} fxe6 {[%emt 0:00:55]} 39. Qa8 {[%emt 0:00:16]} Kg7 {[%emt 0:00:17]} 40. Qb7+ {[%emt 0:00:32]} Kg8 {[%emt 0:00:35]} 41. Qa8+ {[%emt 0:30:13]} Kg7 {[%emt 0:30:10]} 42. Qb7+ {[%emt 0:00:25]} Kg8 {[%emt 0:00:19]} 1/2-1/2

[Event "German Masters Frauen 2019"]
[Site "Magdeburg"]
[Date "2019.05.28"]
[Round "3.3"]
[White "Heinemann, Josefine"]
[Black "Sieber, Fiona"]
[Result "1/2-1/2"]
[ECO "B52"]
[WhiteElo "2227"]
[BlackElo "2250"]
[Annotator "ChessBase"]
[PlyCount "31"]
[EventDate "2019.05.26"]
[EventType "tourn"]
[EventCountry "GER"]
[SourceTitle "playchess.com"]
[Source "ChessBase"]
[SourceQuality "1"]
[TimeControl "40/5400+30:1800+30"]

1. e4 {[%emt 0:00:00]} c5 {[%emt 0:00:00]} 2. Nf3 {[%emt 0:00:00]} d6 {[%emt 0:00:00]} 3. Bb5+ {[%emt 0:00:00]} Bd7 {[%emt 0:00:15]} 4. Bxd7+ {[%emt 0:00:14]} Qxd7 {[%emt 0:00:06]} 5. c4 {[%emt 0:00:11]} Nf6 {[%emt 0:00:09]} 6. Nc3 {[%emt 0:00:08]} g6 {[%emt 0:00:10]} 7. d4 {[%emt 0:00:50]} cxd4 {[%emt 0:00:05]} 8. Nxd4 {[%emt 0:00:03]} Bg7 {[%emt 0:00:10]} 9. h3 {[%emt 0:01:30]} Qc7 {[%emt 0:05:24]} 10. Be3 {[%emt 0:09:54]} Qxc4 {[%emt 0:13:39]} 11. Rc1 {[%emt 0:00:06]} Na6 {[%emt 0:02:39]} 12. Ncb5 {[%emt 0:16:14]} Qxa2 {[%emt 0:03:43]} 13. Ra1 {[%emt 0:04:15]} Qc4 {[%emt 0:12:09]} 14. Rc1 {[%emt 0:02:06]} Qa2 {[%emt 0:00:08]} 15. Ra1 {[%emt 0:03:02]} Qc4 {[%emt 0:00:10]} 16. Rc1 {[%emt 0:00:11]} 1/2-1/2